Cogmind - Beta 14 @@@ ROGUE MODE // 2024.10.31 @ 18:18:40 Player: Xellophane Result: Destroyed by QG-LS2(R) with Subdweller Machine Gun Performance ------------- Evolutions (0) 0 Regions Visited (2) 400 Robots Destroyed (30) 150 Value Destroyed (633) 633 Prototype IDs (2) 40 Alien Tech Used (0) 0 Bonus (0) 0 TOTAL SCORE: 1223 Bonus ------- None Cogmind --------- Core Integrity 0/250 Matter 295/300 Energy 100/100 System Corruption 4% Temperature Cool (0) Movement Treading (160) Location -10/Subcaves Parts ------- > --- POWER (1) -------- (None) > --- PROPULSION (2) --- Light Treads Light Treads > --- UTILITY (2) ------ Large Storage Unit Signal Interpreter > --- WEAPON (2) ------- Assault Rifle Hammer > --- INVENTORY (15) --- Aluminum Leg Aluminum Leg Small Storage Unit Seismic Detector Seismic Detector Scrap Shield Medium Laser Light Assault Rifle Light Assault Rifle Grenade Launcher Mining Laser Hammer Hammer Hammer Peak State ------------ > --- POWER ------------ Light Ion Engine > --- PROPULSION ------- Light Treads Light Treads > --- UTILITY ---------- Large Storage Unit Seismic Detector > --- WEAPON ----------- Medium Laser Light Assault Rifle > --- INVENTORY -------- Ion Engine Light Ion Engine Aluminum Leg Aluminum Leg Small Storage Unit Seismic Detector Assault Rifle Mining Laser Hammer Hammer [Rating: 8] Favorites ----------- Power Light Ion Engine Engine Light Ion Engine Propulsion Light Treads Treads Light Treads Leg Aluminum Leg Utility Large Storage Unit Device Seismic Detector Storage Large Storage Unit Processor Signal Interpreter Protection Light Armor Plating Weapon Hammer Energy Gun Medium Laser Ballistic Gun Light Assault Rifle Impact Weapon Hammer Build | -11 -10 -10 ------- Run | Yrd Mat Sub Slots Evolved . | . . . Power . | . . . Propulsion . | . . . Utility . | . . . Weapon . | . . . Parts Attached 24 | 8 13 3 Power 6 | 2 3 1 Engine 6 | 2 3 1 Core . | . . . Reactor . | . . . Propulsion 6 | 2 2 2 Treads 4 | 2 . 2 Leg 2 | . 2 . Wheel . | . . . Hover . | . . . Flight . | . . . Utility 5 | 2 3 . Device 1 | 1 . . Storage 2 | 1 1 . Processor 1 | . 1 . Hackware . | . . . Protection 1 | . 1 . Artifact . | . . . Weapon 7 | 2 5 . Energy Gun 1 | 1 . . Energy Cannon . | . . . Ballistic Gun 3 | 1 2 . Ballistic Cannon . | . . . Launcher . | . . . Special Weapon . | . . . Impact Weapon 3 | . 3 . Slashing Weapon . | . . . Piercing Weapon . | . . . Special Melee Weapon . | . . . Unidentified Prototypes . | . . . Parts Lost 8 | . 7 1 Power 5 | . 4 1 Propulsion 2 | . 2 . Utility 1 | . 1 . Weapon . | . . . Highest Loss Streak 2 | . 2 1 To Critical Strikes . | . . . Average Slot Usage (%) 94 | . 93 100 Engine 10 | . 9 14 Treads 18 | . 20 8 Leg 8 | . 6 19 Device 1 | . 1 . Storage 14 | . 14 14 Processor 6 | . 5 14 Protection 5 | . 6 . Energy Gun 1 | . 1 . Ballistic Gun 14 | . 14 14 Impact Weapon 12 | . 12 14 Peak Build Rating 8 | 7 8 8 Average Rating 7 | 5 7 7 On Entrance 4 | . 7 7 Naked Turns . | . . . Heaviest Build 31 | 12 31 27 Greatest Support 40 | 40 40 40 Greatest Overweight (x) 9 | 3 9 1 Average Overweight (x) . | 2 . . Largest Inventory Capacity 15 | 8 15 15 Average Capacity 13 | 7 14 15 Most Carried 15 | 8 15 15 Average Carried 12 | 5 13 14 Final Capacity 15 | 8 15 15 Final Carried 15 | 7 15 15 Class Distribution -------------------- 100% | Mutant Dominant Class ---------------- Mutant | -10/Materials Mutant | -10/Subcaves Resources | -11 -10 -10 ----------- Run | Yrd Mat Sub Matter Collected 536 | 297 182 57 Remotely . | . . . Salvage Created 1011 | 239 726 46 Parts 43 | 22 20 1 Haulers Intercepted 2 | . 2 . Recyclers Shooed . | . . . Parts Field Recycled . | . . . Retrieved Matter . | . . . Parts Self-Destructed 6 | . . 6 Prevented . | . . . Kills | -11 -10 -10 ------- Run | Yrd Mat Sub Combat Hostiles Destroyed 16 | . 15 1 Melee 5 | . 5 . Guns 3 | . 3 . Classes Destroyed 9 | 3 5 1 Worker 2 | 2 . . Tunneler 6 | 6 . . Hauler 2 | . 2 . Recycler 2 | 1 1 . Operator 1 | . 1 . Watcher 1 | . 1 . Swarmer 2 | . 2 . Grunt 13 | . 13 . Subdweller 1 | . . 1 Best Kill Streak 6 | 5 6 1 Combat Bots Only 5 | . 5 1 Max Kills in Single Turn 1 | 1 1 1 Gunslinging . | . . . Exploded . | . . . Melee 1 | . 1 . Uniques/NPCs Destroyed . | . . . Combat | -11 -10 -10 -------- Run | Yrd Mat Sub Hostile Shots Fired 147 | . 137 10 Missed 42 | . 41 1 Damage Taken 1262 | . 1088 174 Core 254 | . 209 45 Absorbed by Shields . | . . . Core Remaining (%) 100 | 100 . . Volleys Fired 62 | 30 32 . Largest 2 | 2 2 . Hottest 70 | 70 70 . Shots Fired 104 | 59 45 . Gun 104 | 59 45 . Cannon . | . . . Launcher . | . . . Special . | . . . Kinetic 63 | 30 33 . Thermal 41 | 29 12 . Explosive . | . . . Electromagnetic . | . . . Robot Hit Streak 8 | 8 7 . Robot Miss Streak 2 | 2 2 . Penetration Max . | . . . Secondary Targets . | . . . Shots Hit Robots 98 | 34 61 3 Core Hits 31 | 14 17 . Critical Kills . | . . . Critical Parts Destroyed 9 | . 7 2 Critical Strikes 12 | 3 7 2 Burn 3 | 3 . . Smash 9 | . 7 2 Melee Attacks 48 | . 44 4 Impact 48 | . 44 4 Slashing . | . . . Piercing . | . . . Sneak Attacks 2 | . 2 . Combat Hostiles . | . . . Follow-up Attacks . | . . . Damage Inflicted 1616 | 390 1183 43 Guns 679 | 390 289 . Cannons . | . . . Explosions . | . . . Melee 937 | . 894 43 Ramming . | . . . Kinetic 302 | 150 152 . Thermal 377 | 240 137 . Explosive . | . . . Electromagnetic . | . . . Impact 937 | . 894 43 Slashing . | . . . Piercing . | . . . Highest Corruption 4 | . 4 4 Average Corruption 3 | . 3 4 Corruption Purged . | . . . Corruption Blocked . | . . . Effects 22 | . 15 7 Message Errors 1 | . . 1 Matter Fused 7 | . 5 2 Heat Flow Errors 3 | . 2 1 Energy Discharges 5 | . 2 3 Parts Rejected 1 | . 1 . Parts Fused 1 | . 1 . Data Loss (minor) 2 | . 2 . Data Loss (major) 1 | . 1 . Misfires 1 | . 1 . Overload Shots . | . . . Overflow Damage 336 | . 293 43 Projectiles . | . . . Explosions . | . . . Melee 336 | . 293 43 Knockbacks 3 | . 2 1 Impact 3 | . 2 1 Kinetic . | . . . Secondary . | . . . Self-Inflicted Damage . | . . . Shots . | . . . Rammed . | . . . Targets Rammed . | . . . Kicked . | . . . Crushed . | . . . Highest Temperature 199 | 100 108 199 Average Temperature 44 | 41 44 103 Received Heat Transfer 474 | . 465 9 Siege Activations . | . . . Robots Corrupted 11 | . 10 1 Combat Hostiles 8 | . 7 1 Parts Fried 17 | . 16 1 Impact Corruptions 19 | . 17 2 Robots Melted . | . . . Combat Hostiles . | . . . Parts Melted 3 | 1 2 . Heat Transferred 1332 | 925 407 . Parts Sabotaged . | . . . Parts Stolen . | . . . Parts Stripped . | . . . Power Chain Reactions . | . . . Alert | -11 -10 -10 ------- Run | Yrd Mat Sub Peak Influence 206 | 45 206 . Initial 29 | . 29 . Average 68 | 21 77 . Maximum Alert Level 1 | . 1 . Low Security (%) 99 | 100 99 . Level 1 . | . . . Level 2 . | . . . Level 3 . | . . . Level 4 . | . . . Level 5 . | . . . High Security . | . . . Max Security . | . . . Squads Dispatched 3 | . 3 . Investigation 2 | . 2 . Extermination . | . . . Reinforcement 1 | . 1 . Assault . | . . . Garrison . | . . . Intercept . | . . . Searches Triggered . | . . . Construction Impeded . | . . . Haulers Reinforced . | . . . Active Scanning Responses . | . . . Cargo Convoy Interrupts . | . . . Stealth | -11 -10 -10 --------- Run | Yrd Mat Sub Distress Signals 3 | . 3 . Communications Jammed . | . . . Distress Signals . | . . . Times Spotted 35 | . 28 7 Peak Tracking Total 5 | . 4 5 Tactical Retreats . | . . . Traps | -11 -10 -10 ------- Run | Yrd Mat Sub Traps Triggered 2 | . 2 . Indirectly . | . . . Trap Hack Attempts . | . . . Triggered . | . . . Disarmed . | . . . Reprogrammed . | . . . Reused . | . . . Traps Extracted . | . . . Installed . | . . . Triggered 1 | . 1 . Machines | -11 -10 -10 ---------- Run | Yrd Mat Sub Machines Disabled . | . . . Max in Single Turn . | . . . Machines Repaired . | . . . Machines Dismantled . | . . . Machines Sabotaged . | . . . Overloaded Fab Kills . | . . . Hacking | -11 -10 -10 --------- Run | Yrd Mat Sub Machines Accessed 5 | . 5 . Terminals 4 | . 4 . Fabricators . | . . . Repair Stations . | . . . Recycling Units 1 | . 1 . Scanalyzers . | . . . Garrison Access . | . . . Total Hacks 16 | . 16 . Successful 3 | . 3 . Failed 13 | . 13 . Catastrophic 1 | . 1 . Database Lockouts . | . . . Manual 9 | . 9 . Terminals 15 | . 15 . Fabricators . | . . . Repair Stations . | . . . Recycling Units 1 | . 1 . Scanalyzers . | . . . Garrison Access . | . . . Terminal Hacks 2 | . 2 . Prototype ID Bank 1 | . 1 . Branch Access Points 1 | . 1 . Fabricator Hacks . | . . . Repair Station Hacks . | . . . Recycling Unit Hacks 1 | . 1 . Report Inventory 1 | . 1 . Scanalyzer . | . . . Garrison Access Hacks . | . . . Unauthorized Hacks . | . . . Terminals . | . . . Fabricators . | . . . Repair Stations . | . . . Recycling Units . | . . . Scanalyzers . | . . . Garrison Access . | . . . Data Cores Recovered . | . . . Used . | . . . Hacking Detections 4 | . 4 . Full Trace Events 3 | . 3 . Feedback Events 2 | . 2 . Corruption 2 | . 2 . Feedback Blocked . | . . . Robot Schematics Acquired . | . . . Robots Built . | . . . Authchips . | . . . Time . | . . . Total Robot Build Rating . | . . . Part Schematics Acquired . | . . . Parts Built . | . . . Authchips . | . . . Time . | . . . Total Part Build Rating . | . . . Parts Repaired . | . . . Time . | . . . Parts Recycled . | . . . Recycled Matter . | . . . Retrieved Matter . | . . . Retrieved Components . | . . . Parts Scanalyzed . | . . . Part Schematics Acquired . | . . . Parts Damaged . | . . . Bothacking | -11 -10 -10 ------------ Run | Yrd Mat Sub Used RIF Installer . | . . . Robots Hacked . | . . . Non-combat . | . . . Combat . | . . . Robot Hacks Applied . | . . . Relay Couplers Released . | . . . Fabnet Peak Effective % . | . . . Robots Rewired . | . . . Allies Hacked . | . . . Hacks Repelled . | . . . Allies | -11 -10 -10 -------- Run | Yrd Mat Sub Total Allies . | . . . Largest Group . | . . . Highest-Rated Group . | . . . Highest-Rated Ally . | . . . Total Orders . | . . . Ally Attacks . | . . . Total Damage . | . . . Kills . | . . . Allies Corrupted . | . . . Allies Melted . | . . . Intel | -11 -10 -10 ------- Run | Yrd Mat Sub Robot Analysis Total . | . . . Derelict Logs Recovered . | . . . Drone Launches . | . . . Drone Recoveries . | . . . Exploration | -11 -10 -10 ------------- Run | Yrd Mat Sub Turns Passed 1824 | 238 1302 284 Spaces Moved 836 | 82 606 148 Core 82 | 81 1 . Treads 518 | 1 468 49 Legs 236 | . 137 99 Wheels . | . . . Hover . | . . . Flight . | . . . Fastest Speed 50 | 50 160 160 Average Speed 173 | 167 172 180 Slowest Speed 500 | 200 500 190 Overloaded Moves . | . . . Propulsion Burnouts . | . . . Robots Hopped . | . . . Cave-ins Triggered . | . . . Exploration Rate (%) 32 | 7 74 16 Regions Visited 2 Branch Regions 1 Pre-discovered Areas . | . . . Known Exits Taken 1 | . 1 . Unknown Exits Taken 1 | 1 . . Scrap Searched . | . . . Spaces Dug . | . . . Terrain Destroyed . | . . . Melee . | . . . Projectile . | . . . AOE . | . . . Terrain Rammed . | . . . Walls Destroyed . | . . . Machines Disabled . | . . . Actions | -11 -10 -10 --------- Run | Yrd Mat Sub Total 1031 | 126 747 158 Wait 39 | . 39 . Move 834 | 81 605 148 Hop . | . . . Pick Up 21 | 7 13 1 Fast Attach 9 | 6 2 1 Attach 7 | 1 5 1 Detach 1 | . . 1 Swap 8 | 1 6 1 Drop 2 | . 1 1 Fire 62 | 30 32 . Melee 48 | . 44 4 Ram . | . . . Kick . | . . . Crush . | . . . Escape Stasis . | . . . Rewire . | . . . Trap . | . . . Miscellaneous . | . . . Route ------- -11/Scrapyard -10/Materials (discovered 4 exits: *Mat x2 / *Min / *Sub) -10/Subcaves (discovered 2 exits: *Mat x2) History --------- Turn | Location | Event 9 | -11/Scrapyard | Discovered new exit (range 16) 239 | -11/Scrapyard | Entered Materials 307 | -10/Materials | Build established: Mutant 409 | -10/Materials | Discovered new exit (range 15) 619 | -10/Materials | Discovered new exit (range 3) 1024 | -10/Materials | Discovered new exit (range 16) 1053 | -10/Materials | Identified exit to Materials 1106 | -10/Materials | Identified exit to Mines 1232 | -10/Materials | Core integrity fell below 50% 1260 | -10/Materials | Core integrity fell below 20% 1513 | -10/Materials | Discovered new exit (range 14) 1539 | -10/Materials | Identified exit to Subcaves 1541 | -10/Materials | Entered Subcaves 1593 | -10/Subcaves | Discovered new exit (range 16) 1620 | -10/Subcaves | Identified exit to Materials 1638 | -10/Subcaves | Shifting Twisted Machinery released Flamer 1779 | -10/Subcaves | Discovered exit to Materials (range 8) 1817 | -10/Subcaves | Ambushed by swarm of Subdwellers 1819 | -10/Subcaves | Ambushed by Subdwellers from Twisted Machinery 1825 | -10/Subcaves | Destroyed by QG-LS2(R) with Subdweller Machine Gun Last Messages --------------- 01788_ System corrupted: Matter fused (-8). 01806_ System corrupted: Heat flow error (+239). A mess of Twisted Machinery falls from the cavern ceiling. WC-JWO(R) comes tumbling into view. 01817_ FN-P50(h): "The Subs are coming!" 01819_ QG-LS2(R) emerges from the Twisted Machinery. 01819_ YD-60O(R) emerges from the Twisted Machinery. 01819_ OH-SRX(R) angrily emerges from the Twisted Machinery. 01820_ EO-NE0(R) emerges from the Twisted Machinery. 01822_ Lgt. Ion Engine destroyed. 01822_ YD-60O(R) suffers critical hit (Smash). 01822_ Destroyed Sub. Monowheel. 01822_ YD-60O(R) system corrupted by crushing effect. 01822_ YD-60O(R) knocked back. 01823_ YD-60O(R) system terminally corrupted. 01823_ Sub. Optics fried. 01823_ HV Slug penetrates EO-NE0(R). 01823_ EO-NE0(R) suffers critical hit (Destroy). 01823_ EO-NE0(R) destroyed. 01823_ HV Slug penetrates Wall. Map ----- +----------------------------------------------------+ | | | | | | | | | | | | | ?????????????????????????????????????????????????? | | ?????????????????????????????????????????????????? | | ?????????????????????????????????????????????????? | | ?????????????????????????????????????????????????? | | ?????????????????????????????????????????????????? | | ?????????????????????????????????????????????????? | | ?????????????????????????????????????????????????? | | ?????????????????????????????????????????????????? | | ?????????????????????????????????????????????????? | | ?????????????????????????????????????????????????? | | ????????????????< ???????????????????????????????? | | ???????????????? ??????????????????????????????? | | ????????????????? #?????????????????????????????? | | ?????????????????? ? ??????????????????????????? | | ??????????????????## ??????????????????????????? | | ??????????####????# #?????########?????????????? | | ??????????# #??###< <######%& ##????????????? | | #????????## #### < RR"#&h #????????????? | | ##?????### #?# R&&"" #????????????? | | ####### " ### ##### @### #????????????? | | ## #???## #????????????? | | #????# #????????????? | | ## #?????# ## ##????????????? | | # #??????##### #?????????????? | | #??????# ### ##?????????????? | | #????### ## #??????????????? | | ### ###### ### #??????????????? | | "## #### ### ##?????????????? | | ######?# #?## ##????????????? | | #??????# ## #### #????????????? | | #??????# ## #????????????? | | #??????######## ## #????????????? | | #?????????????### #????????????? | | ##????????????##?## < #????????????? | | ###???######## #??# ##????????????? | | # ##### #?# ## ##?????????????? | | ## #?# ###### #??????????????? | | < #?# ##????#### ?????????????? | | #?# #????????### ????????????? | | ### #?# #??????????# ???????????? | | #?# ##? #??????????? ??????????? | | ## ###?? ???????????? ?????????? | | ### "#???# ???????????? ?????????? | | ## #???? ????????????### ??????????? | +----------------------------------------------------+ Best States ------------- Heat Dissipation 25 Energy Generation 10 Energy Capacity 250 Matter Stores 300 Matter Capacity 300 Sight Range 16 Terrain Scan Density 10 Armor Coverage 150 Evasion (%) 40 Recoil Reduction 2 Item Schematics ----------------- None Robot Schematics ------------------ None Fabricated ------------ Nothing Alien Tech Used ----------------- None Achievements -------------- Power Corrupts Challenges ------------ None Game ------ Seed CloakingSingularitySplitter Manual? 0 Play Time 00:21:04 Cumulative 7.8 hours Start 2024.10.31 @ 17:54:10 End 2024.10.31 @ 18:18:40 Sessions 1 Manual Loads 0 Difficulty Rogue Special Mode None Game No. 11 Rogue 11 Adventurer 0 Explorer 0 Win Type - Total 0 Types 0/0/0/0/0/0/0/0/0 Lore% 3 Gallery% 7 Achievement% 12 Wizard Run 0 Options --------- Layout 0 ASCII 0 Keyboard 1 Movement Numpad Keybinds 0 Fullscreen 2 Font 18/SmallcapsGlow Map View 76x50 Zoom Use 0% Tactical HUD 1 Map Filters NONE Filters NONE Steam 1 RUN: 417fe924-f34b-46b8-9ed1-1475b681dd55